Workbook

Sheet Worksheet A
F3: Worksheet A 2016
B4: Number of Children
F5: =+G5+I5 -> 0 | G5: =IF(G7=FALSE,0,1) -> 0 | I5: =IF(I7=FALSE,0,1) -> 0
D6: Parent with >272 | G6: Mother | I6: Father
G7: FALSE | I7: FALSE
E8: =IF(F5>1,"Only One Parent Can be Checked",IF(F5=0,"One Parent Must Be Checked","")) -> One Parent Must Be Checked
C10: 1 | E10: Monthly Gross Income
D12: a. | E12: Plus Maintenance Received
D14: b. | E14: Minus Maintenance Paid
AC15: OTH
D16: c. | E16: Minus ordered CS Payments | X16: Mom | Y16: Dad | AC16: Mom | AD16: Dad
G17: =+G10+G12 -> 0 | I17: =+I10+I12 -> 0 | X17: =+G17 -> 0 | Y17: =+I17 -> 0 | Z17: Gross
D18: d. | E18: Minus legal responsibility | G18: =IF(F18<1,0,IF(G17<1100,X22,IF(G17<1900,X27,X20))) -> 0 | I18: =IF(H18<1,0,IF(I17<1100,Y22,IF(I17<1900,Y27,Y20))) -> 0 | X18: =+F18 -> 0 | Y18: =+H18 -> 0 | Z18: No of Kids
X19: =+Formula!G19 ->  | Y19: =+Formula!H19 ->  | Z19: BSO | AA19: Hypo | AC19: =+'Formula OTH'!G19 -> 0 | AD19: =+'Formula OTH'!H19 -> 0 | AE19: Hypo
D20: e. | E20: Resp for Children Outside the Home | X20: =ROUND(X19*0.75,2) ->  | Y20: =ROUND(Y19*0.75,2) ->  | Z20: 0.75 | AC20: =+G21 -> 0 | AD20: =+I21 -> 0 | AE20: Pay
E21: Amount Paid | X21: =IF(X18=1,50,IF(X18=2,70,IF(X18=3,90,IF(X18=4,110,IF(X18=5,130,IF(X18>5,150)))))) -> FALSE | Y21: =IF(Y18=1,50,IF(Y18=2,70,IF(Y18=3,90,IF(Y18=4,110,IF(Y18=5,130,IF(Y18>5,150)))))) -> FALSE | Z21: Min | AC21: =IF(AC20<AC19,AC20,AC19) -> 0 | AD21: =IF(AD20<AD19,AD20,AD19) -> 0
E22: No of Children | X22: =+X21*0.75 -> 0 | Y22: =+Y21*0.75 -> 0 | Z22: 0.75
X23: =(X17-1100) -> -1100 | Y23: =(Y17-1100) -> -1100 | Z23: LIA Start
E24: Minus Adjustment for Children OTH | G24: =IF(G22<1,0,AC21) -> 0 | I24: =IF(I22<1,0,AD21) -> 0 | X24: =IF(X18=1,50,IF(X18=2,70,IF(X18=3,90,IF(X18=4,110,IF(X18=5,130,IF(X18>5,150)))))) -> FALSE | Y24: =IF(Y18=1,50,IF(Y18=2,70,IF(Y18=3,90,IF(Y18=4,110,IF(Y18=5,130,IF(Y18>5,150)))))) -> FALSE | Z24: Per Kid
X25: =+X23+X24 -> -1100 | Y25: =+Y23+Y24 -> -1100 | Z25: LIA
D26: f. | E26: Minus ordered educ cont | X26: =+X25*0.75 -> -825 | Y26: =+Y25*0.75 -> -825 | Z26: 0.75
X27: =IF(X26<X20,X26,X20) ->  | Y27: =IF(Y26<Y20,Y26,Y20) ->  | Z27: lower of LIA or Hypothetical Order
C28: 2 | E28: Monthly Adj Gross Income | G28: =IF(G10+G12-G14-G16-G18-G24-G26<0,0,G10+G12-G14-G16-G18-G24-G26) -> 0 | I28: =IF(I10+I12-I14-I16-I18-I24-I26<0,0,I10+I12-I14-I16-I18-I24-I26) -> 0 | K28: =+G28+I28 -> 0
W29: >1100 | X29: Mom | Y29: Dad
C30: 3 | E30: % Share of Income | G30: =ROUND(G28/K28,4) ->  | I30: =ROUND(I28/K28,4) ->  | W30: =IF(K28>1100,1,0) -> 0 | X30: =IF(G5=1,0,1) -> 1 | Y30: =IF(I5=1,0,1) -> 1 | AA30: 1 is NCP
X31: =+G28 -> 0 | Y31: =+I28 -> 0 | AA31: AGO
C32: 4 | D32: a. | E32: Basic Combined Obligation | G32: =ROUND(G30,4) ->  | I32: =ROUND(I30,4) ->  | K32: =+Calculator!C9 -> 0 | X32: =IF(X31<1900,1,0) -> 1 | Y32: =IF(Y31<1900,1,0) -> 1 | AA32: If AGO is <1900 then 1
X33: =+X30+X32 -> 2 | Y33: =+Y30+Y32 -> 2
D34: b. | E34: Parent's Share of BSO | G34: =+G32*K32 ->  | I34: =+I32*K32 ->  | X34: =IF(X33>1,1,0) -> 1 | Y34: =IF(Y33>1,1,0) -> 1 | AA34: Use adj if here
C36: 5 | E36: Low Income Adj | G36: =IF(X44>0,X44*W30,0) ->  | I36: =IF(Y44>0,Y44*W30,0) -> 
X37: =IF(X31>1100,G28-1100,0) -> 0 | Y37: =IF(Y31>1100,I28-1100,0) -> 0
C38: 6 | E38: Adjustments | X38: =+X37 -> 0 | Y38: =+Y37 -> 0 | AA38: same as above
X39: =+X34*X38 -> 0 | Y39: =+Y34*Y38 -> 0 | AA39: if >0 adj
E40: Work Related Child Care | X40: =IF(Formula!E1=1,50,IF(Formula!E1=2,70,IF(Formula!E1=3,90,IF(Formula!E1=4,110,IF(Formula!E1=5,130,IF(Formula!E1=6,150,"Error")))))) -> Error | Y40: =IF(Formula!E1=1,50,IF(Formula!E1=2,70,IF(Formula!E1=3,90,IF(Formula!E1=4,110,IF(Formula!E1=5,130,IF(Formula!E1=6,150,"Error")))))) -> Error | AA40: Extra Children
X41: =+X38+X40 ->  | Y41: =+Y38+Y40 -> 
D42: a. | E42: Work Related Child Care | G42: =+'Child Care Adj'!C30 -> 0 | I42: =+'Child Care Adj'!D30 -> 0 | X42: =+X34*X41 ->  | Y42: =+Y34*Y41 -> 
X43: =IF(X42<G34,X42,0) ->  | Y43: =IF(Y42<I34,Y42,0) -> 
D44: b. | E44: Education Related Child Care | X44: =+X34*X43 ->  | Y44: =+Y34*Y43 -> 
D46: c. | E46: Health Insurance Premiums
D48: d. | E48: Extraordinary Medical Exp
D50: e. | E50: Extraordinary Expenses | X50: =IF(G36>0,1,0) ->  | Y50: =IF(I36>0,1,0) ->  | AA50: Use Low Inc Adj or Not
D52: f. | E52: Minus Extraordinary Adj
C54: 7 | E54: Total Adj | G54: =+G42+G44+G46+G48+G50-G52 -> 0 | I54: =+I42+I44+I46+I48+I50-I52 -> 0 | K54: =+G54+I54 -> 0
C56: 8 | E56: Each Parent's Share of Adj | G56: =ROUND(K54*G30,2) ->  | I56: =ROUND(K54*I30,2) -> 
C58: 9 | E58: Each Parent's Share Total Ob | G58: =IF(AND(G36<G34,X50>0),G36+G56,G34+G56) ->  | I58: =IF(AND(I36<I34,Y50>0),I36+I56,I34+I56) -> 
C60: 10 | E60: Paying Parent's Adjustment | F60: =IF(G5=1,0,1) -> 1 | G60: =+G54*F60 -> 0 | H60: =IF(I5=1,0,1) -> 1 | I60: =+I54*H60 -> 0
G61: =IF(G5=1,0,ROUND(G58+0.01-G60,0)) ->  | I61: =IF(I5=1,0,ROUND(I58+0.01-I60,0)) -> 
G62: =+G61 ->  | I62: =+I61 -> 
G63: =IF(G28<1100,+Formula!G1,G61) -> 0 | I63: =IF(I28<1100,+Formula!G1,I61) -> 0
G64: =IF(G62>G63,G62,G63) ->  | I64: =IF(I62>I63,I62,I63) -> 
G65: =IF(G64<I64,0,1) ->  | I65: =IF(I64<G64,0,1) -> 
G66: =IF(G28<1100,+Formula!G1*G65,G64*G65) ->  | I66: =IF(I28<1100,+Formula!G1*I65,I64*I65) -> 
C68: 11 | E68: Recommended CS Order | G68: =IF(G66<I66,"",G66*I5) ->  | I68: =IF(I66<G66,"",I66*G5) -> 
G69: =IF(AND(G68=0,G64<0),G64,"") ->  | I69: =IF(AND(I68=0,I64<0),I64,"") -> 

Sheet Calculator (hidden)
B3: Number of Children | C3: =+'Worksheet A'!E4 -> 0 | F3: 2953 | G3: low | H3: =+F4-F3 -> 3 | I3: diff
F4: 2956 | G4: high
B5: Actual CGI | C5: =+'Worksheet A'!K28 -> 0
F6: 37 | G6: amt over
F7: =+H3/50*F6 -> 2.22 | G7: inc
B9: Basic Support Obligation | C9: =+Formula!C18 -> 0 | F9: =+F7+F3 -> 2955.22 | G9: Total

Sheet Formula (hidden)
B1: Kids | C1: =+Calculator!C3 -> 0 | E1: =IF(C1=0,0,IF(C1=1,1,IF(C1=2,2,IF(C1=3,3,IF(C1=4,4,IF(C1=5,5,6)))))) -> 0 | G1: =IF(E1=0,0,IF(E1=1,50,IF(E1=2,70,IF(E1=3,90,IF(E1=4,110,IF(E1=5,130,IF(E1=6,150,0))))))) -> 0
H3: Legal Respnsibility
B4: Kids | C4: =+Calculator!C3 -> 0 | E4: =IF(C4=0,0,IF(C4=1,2,IF(C4=2,3,IF(C4=3,4,IF(C4=4,5,IF(C4=5,6,IF(C4>5,7))))))) -> 0 | G4: =+'Worksheet A'!X18 -> 0 | H4: =+'Worksheet A'!Y18 -> 0 | M4: 1053 | O4: Low
G5: =IF(G4=0,0,IF(G4=1,2,IF(G4=2,3,IF(G4=3,4,IF(G4=4,5,IF(G4=5,6,IF(G4>5,7))))))) -> 0 | H5: =IF(H4=0,0,IF(H4=1,2,IF(H4=2,3,IF(H4=3,4,IF(H4=4,5,IF(H4=5,6,IF(H4>5,7))))))) -> 0 | M5: 1063 | O5: High
B6: CGI | C6: =+Calculator!C5 -> 0 | E6: =VLOOKUP(C6,Matrix!A:G,Formula!E4) ->  | M6: =+M5-M4 -> 10 | O6: Diff High and Low
G7: Mom | H7: Dad | M7: 50 | O7: Spread
C8: =ROUNDUP(C6/50,0)*50 -> 0 | E8: =VLOOKUP(C8,Matrix!A:G,Formula!E4) ->  | G8: =+'Worksheet A'!G17 -> 0 | H8: ='Worksheet A'!I17 -> 0 | J8: Gross | M8: 10 | O8: Amount Over
B10: Diff | C10: =+E8-E6 ->  | G10: =ROUNDUP(G8/50,0)*50 -> 0 | H10: =ROUNDUP(H8/50,0)*50 -> 0 | M10: =+M6/M7*M8 -> 2 | O10: Inc
B12: Spread | C12: 50 | G12: =VLOOKUP(G8,Matrix!A:G,Formula!G5) ->  | H12: =VLOOKUP(H8,Matrix!A:G,Formula!H5) ->  | J12: Low
G13: =VLOOKUP(G10,Matrix!A:G,Formula!G5) ->  | H13: =VLOOKUP(H10,Matrix!A:G,Formula!H5) ->  | J13: High | M13: =+M4+M10 -> 1055 | O13: Total
B14: Amt Over | C14: =+C6-(C8-50) -> 50 | G14: =+G13-G12 ->  | H14: =+H13-H12 ->  | J14: Diff
G15: 50 | H15: 50 | J15: Spread
B16: Inc BSO | C16: =ROUND(C10/C12*C14,2) ->  | D16: rounded | G16: =+G8-(G10-50) -> 50 | H16: =+H8-(H10-50) -> 50 | J16: Amt Over
G17: =+G14/G15*G16 ->  | H17: =+H14/H15*H16 ->  | J17: Inc BSO
B18: BSO | C18: =IF(Calculator!C5=0,0,IF(Calculator!C5<1100,G1,Formula!C22)) -> 0
G19: =+G12+G17 ->  | H19: =+H12+H17 ->  | J19: BSO
B20: Low | C20: 50
B21: High
B22: Actual | C22: =+E6+C16 -> 

Sheet Matrix (hidden)
A1: CombGross | B1: One | C1: Two | D1: Three | E1: Four | F1: Five | G1: SixMore
A2: 1100 | B2: 216 | C2: 335 | D2: 410 | E2: 458 | F2: 504 | G2: 547
A3: 1150 | B3: 225 | C3: 348 | D3: 427 | E3: 477 | F3: 524 | G3: 570
A4: 1200 | B4: 234 | C4: 362 | D4: 443 | E4: 495 | F4: 545 | G4: 592
A5: 1250 | B5: 243 | C5: 375 | D5: 460 | E5: 513 | F5: 565 | G5: 614
A6: 1300 | B6: 251 | C6: 389 | D6: 476 | E6: 532 | F6: 585 | G6: 636
A7: 1350 | B7: 260 | C7: 402 | D7: 492 | E7: 550 | F7: 605 | G7: 658
A8: 1400 | B8: 269 | C8: 416 | D8: 509 | E8: 568 | F8: 625 | G8: 680
A9: 1450 | B9: 277 | C9: 429 | D9: 525 | E9: 587 | F9: 645 | G9: 701
A10: 1500 | B10: 286 | C10: 442 | D10: 541 | E10: 604 | F10: 665 | G10: 723
A11: 1550 | B11: 294 | C11: 455 | D11: 556 | E11: 622 | F11: 684 | G11: 743
A12: 1600 | B12: 302 | C12: 467 | D12: 572 | E12: 639 | F12: 703 | G12: 764
A13: 1650 | B13: 310 | C13: 480 | D13: 587 | E13: 656 | F13: 721 | G13: 784
A14: 1700 | B14: 319 | C14: 492 | D14: 602 | E14: 673 | F14: 740 | G14: 805
A15: 1750 | B15: 327 | C15: 505 | D15: 618 | E15: 690 | F15: 759 | G15: 825
A16: 1800 | B16: 335 | C16: 518 | D16: 634 | E16: 708 | F16: 778 | G16: 846
A17: 1850 | B17: 343 | C17: 530 | D17: 649 | E17: 725 | F17: 798 | G17: 867
A18: 1900 | B18: 352 | C18: 543 | D18: 665 | E18: 742 | F18: 817 | G18: 888
A19: 1950 | B19: 360 | C19: 556 | D19: 680 | E19: 760 | F19: 836 | G19: 908
A20: 2000 | B20: 368 | C20: 569 | D20: 696 | E20: 777 | F20: 855 | G20: 929
A21: 2050 | B21: 377 | C21: 581 | D21: 711 | E21: 794 | F21: 874 | G21: 950
A22: 2100 | B22: 385 | C22: 594 | D22: 727 | E22: 812 | F22: 893 | G22: 971
A23: 2150 | B23: 393 | C23: 607 | D23: 742 | E23: 829 | F23: 912 | G23: 991
A24: 2200 | B24: 401 | C24: 620 | D24: 758 | E24: 847 | F24: 931 | G24: 1012
A25: 2250 | B25: 410 | C25: 632 | D25: 773 | E25: 864 | F25: 950 | G25: 1033
A26: 2300 | B26: 418 | C26: 645 | D26: 789 | E26: 881 | F26: 969 | G26: 1054
A27: 2350 | B27: 426 | C27: 658 | D27: 804 | E27: 899 | F27: 988 | G27: 1074
A28: 2400 | B28: 435 | C28: 671 | D28: 820 | E28: 916 | F28: 1007 | G28: 1095
A29: 2450 | B29: 443 | C29: 683 | D29: 835 | E29: 933 | F29: 1026 | G29: 1116
A30: 2500 | B30: 451 | C30: 696 | D30: 851 | E30: 950 | F30: 1045 | G30: 1136
A31: 2550 | B31: 459 | C31: 709 | D31: 866 | E31: 968 | F31: 1064 | G31: 1157
A32: 2600 | B32: 468 | C32: 722 | D32: 882 | E32: 985 | F32: 1084 | G32: 1178
A33: 2650 | B33: 476 | C33: 734 | D33: 897 | E33: 1002 | F33: 1103 | G33: 1198
A34: 2700 | B34: 484 | C34: 747 | D34: 913 | E34: 1020 | F34: 1122 | G34: 1219
A35: 2750 | B35: 493 | C35: 760 | D35: 928 | E35: 1037 | F35: 1141 | G35: 1240
A36: 2800 | B36: 501 | C36: 772 | D36: 944 | E36: 1054 | F36: 1160 | G36: 1261
A37: 2850 | B37: 509 | C37: 785 | D37: 959 | E37: 1071 | F37: 1179 | G37: 1281
A38: 2900 | B38: 517 | C38: 797 | D38: 974 | E38: 1087 | F38: 1196 | G38: 1300
A39: 2950 | B39: 525 | C39: 809 | D39: 988 | E39: 1103 | F39: 1213 | G39: 1319
A40: 3000 | B40: 533 | C40: 821 | D40: 1002 | E40: 1119 | F40: 1231 | G40: 1338
A41: 3050 | B41: 541 | C41: 833 | D41: 1016 | E41: 1135 | F41: 1248 | G41: 1357
A42: 3100 | B42: 548 | C42: 844 | D42: 1030 | E42: 1150 | F42: 1266 | G42: 1376
A43: 3150 | B43: 556 | C43: 856 | D43: 1044 | E43: 1166 | F43: 1283 | G43: 1394
A44: 3200 | B44: 564 | C44: 868 | D44: 1058 | E44: 1182 | F44: 1300 | G44: 1413
A45: 3250 | B45: 572 | C45: 880 | D45: 1072 | E45: 1198 | F45: 1318 | G45: 1432
A46: 3300 | B46: 580 | C46: 892 | D46: 1086 | E46: 1214 | F46: 1335 | G46: 1451
A47: 3350 | B47: 588 | C47: 904 | D47: 1101 | E47: 1229 | F47: 1352 | G47: 1470
A48: 3400 | B48: 596 | C48: 915 | D48: 1115 | E48: 1245 | F48: 1370 | G48: 1489
A49: 3450 | B49: 604 | C49: 928 | D49: 1129 | E49: 1261 | F49: 1388 | G49: 1508
A50: 3500 | B50: 612 | C50: 940 | D50: 1144 | E50: 1278 | F50: 1406 | G50: 1529
A51: 3550 | B51: 620 | C51: 953 | D51: 1160 | E51: 1295 | F51: 1425 | G51: 1549
A52: 3600 | B52: 628 | C52: 965 | D52: 1175 | E52: 1312 | F52: 1444 | G52: 1569
A53: 3650 | B53: 636 | C53: 977 | D53: 1189 | E53: 1328 | F53: 1460 | G53: 1587
A54: 3700 | B54: 643 | C54: 987 | D54: 1202 | E54: 1342 | F54: 1477 | G54: 1605
A55: 3750 | B55: 650 | C55: 998 | D55: 1215 | E55: 1357 | F55: 1493 | G55: 1622
A56: 3800 | B56: 657 | C56: 1009 | D56: 1228 | E56: 1372 | F56: 1509 | G56: 1640
A57: 3850 | B57: 666 | C57: 1023 | D57: 1245 | E57: 1390 | F57: 1529 | G57: 1662
A58: 3900 | B58: 671 | C58: 1031 | D58: 1254 | E58: 1401 | F58: 1541 | G58: 1675
A59: 3950 | B59: 678 | C59: 1042 | D59: 1267 | E59: 1416 | F59: 1557 | G59: 1693
A60: 4000 | B60: 685 | C60: 1053 | D60: 1280 | E60: 1430 | F60: 1573 | G60: 1710
A61: 4050 | B61: 692 | C61: 1063 | D61: 1294 | E61: 1445 | F61: 1589 | G61: 1728
A62: 4100 | B62: 699 | C62: 1074 | D62: 1306 | E62: 1459 | F62: 1605 | G62: 1744
A63: 4150 | B63: 706 | C63: 1084 | D63: 1319 | E63: 1473 | F63: 1620 | G63: 1761
A64: 4200 | B64: 713 | C64: 1095 | D64: 1331 | E64: 1487 | F64: 1635 | G64: 1778
A65: 4250 | B65: 720 | C65: 1105 | D65: 1344 | E65: 1501 | F65: 1651 | G65: 1794
A66: 4300 | B66: 727 | C66: 1115 | D66: 1356 | E66: 1515 | F66: 1666 | G66: 1811
A67: 4350 | B67: 734 | C67: 1126 | D67: 1368 | E67: 1529 | F67: 1681 | G67: 1828
A68: 4400 | B68: 741 | C68: 1136 | D68: 1381 | E68: 1542 | F68: 1697 | G68: 1844
A69: 4450 | B69: 747 | C69: 1147 | D69: 1393 | E69: 1556 | F69: 1712 | G69: 1861
A70: 4500 | B70: 754 | C70: 1157 | D70: 1406 | E70: 1570 | F70: 1727 | G70: 1878
A71: 4550 | B71: 761 | C71: 1167 | D71: 1418 | E71: 1584 | F71: 1743 | G71: 1894
A72: 4600 | B72: 768 | C72: 1178 | D72: 1431 | E72: 1598 | F72: 1758 | G72: 1911
A73: 4650 | B73: 775 | C73: 1188 | D73: 1443 | E73: 1612 | F73: 1773 | G73: 1928
A74: 4700 | B74: 782 | C74: 1199 | D74: 1456 | E74: 1626 | F74: 1789 | G74: 1944
A75: 4750 | B75: 788 | C75: 1209 | D75: 1467 | E75: 1639 | F75: 1803 | G75: 1960
A76: 4800 | B76: 795 | C76: 1218 | D76: 1478 | E76: 1651 | F76: 1817 | G76: 1975
A77: 4850 | B77: 801 | C77: 1227 | D77: 1489 | E77: 1664 | F77: 1830 | G77: 1989
A78: 4900 | B78: 808 | C78: 1237 | D78: 1500 | E78: 1676 | F78: 1844 | G78: 2004
A79: 4950 | B79: 814 | C79: 1246 | D79: 1511 | E79: 1688 | F79: 1857 | G79: 2019
A80: 5000 | B80: 820 | C80: 1256 | D80: 1523 | E80: 1701 | F80: 1871 | G80: 2033
A81: 5050 | B81: 827 | C81: 1265 | D81: 1534 | E81: 1713 | F81: 1884 | G81: 2048
A82: 5100 | B82: 833 | C82: 1274 | D82: 1545 | E82: 1725 | F82: 1898 | G82: 2063
A83: 5150 | B83: 840 | C83: 1284 | D83: 1556 | E83: 1738 | F83: 1911 | G83: 2078
A84: 5200 | B84: 846 | C84: 1293 | D84: 1567 | E84: 1750 | F84: 1925 | G84: 2092
A85: 5250 | B85: 852 | C85: 1303 | D85: 1578 | E85: 1762 | F85: 1938 | G85: 2107
A86: 5300 | B86: 859 | C86: 1312 | D86: 1589 | E86: 1774 | F86: 1952 | G86: 2122
A87: 5350 | B87: 865 | C87: 1322 | D87: 1600 | E87: 1787 | F87: 1965 | G87: 2136
A88: 5400 | B88: 871 | C88: 1330 | D88: 1610 | E88: 1798 | F88: 1978 | G88: 2150
A89: 5450 | B89: 875 | C89: 1337 | D89: 1617 | E89: 1806 | F89: 1987 | G89: 2160
A90: 5500 | B90: 879 | C90: 1343 | D90: 1624 | E90: 1814 | F90: 1996 | G90: 2169
A91: 5550 | B91: 883 | C91: 1349 | D91: 1631 | E91: 1822 | F91: 2005 | G91: 2179
A92: 5600 | B92: 887 | C92: 1355 | D92: 1639 | E92: 1830 | F92: 2013 | G92: 2189
A93: 5650 | B93: 891 | C93: 1361 | D93: 1646 | E93: 1838 | F93: 2022 | G93: 2198
A94: 5700 | B94: 896 | C94: 1367 | D94: 1653 | E94: 1846 | F94: 2031 | G94: 2208
A95: 5750 | B95: 900 | C95: 1373 | D95: 1660 | E95: 1854 | F95: 2040 | G95: 2217
A96: 5800 | B96: 904 | C96: 1379 | D96: 1667 | E96: 1862 | F96: 2049 | G96: 2227
A97: 5850 | B97: 908 | C97: 1385 | D97: 1674 | E97: 1870 | F97: 2057 | G97: 2236
A98: 5900 | B98: 912 | C98: 1391 | D98: 1682 | E98: 1878 | F98: 2066 | G98: 2246
A99: 5950 | B99: 916 | C99: 1397 | D99: 1689 | E99: 1886 | F99: 2075 | G99: 2256
A100: 6000 | B100: 920 | C100: 1404 | D100: 1696 | E100: 1894 | F100: 2084 | G100: 2265
A101: 6050 | B101: 924 | C101: 1410 | D101: 1703 | E101: 1902 | F101: 2093 | G101: 2275
A102: 6100 | B102: 928 | C102: 1416 | D102: 1710 | E102: 1910 | F102: 2101 | G102: 2284
A103: 6150 | B103: 932 | C103: 1422 | D103: 1717 | E103: 1918 | F103: 2110 | G103: 2294
A104: 6200 | B104: 937 | C104: 1428 | D104: 1725 | E104: 1926 | F104: 2119 | G104: 2303
A105: 6250 | B105: 941 | C105: 1434 | D105: 1732 | E105: 1934 | F105: 2128 | G105: 2313
A106: 6300 | B106: 945 | C106: 1440 | D106: 1739 | E106: 1942 | F106: 2136 | G106: 2322
A107: 6350 | B107: 949 | C107: 1446 | D107: 1746 | E107: 1950 | F107: 2145 | G107: 2332
A108: 6400 | B108: 953 | C108: 1452 | D108: 1753 | E108: 1958 | F108: 2154 | G108: 2341
A109: 6450 | B109: 957 | C109: 1458 | D109: 1760 | E109: 1966 | F109: 2162 | G109: 2351
A110: 6500 | B110: 961 | C110: 1464 | D110: 1767 | E110: 1974 | F110: 2171 | G110: 2360
A111: 6550 | B111: 965 | C111: 1470 | D111: 1774 | E111: 1982 | F111: 2180 | G111: 2370
A112: 6600 | B112: 969 | C112: 1476 | D112: 1782 | E112: 1990 | F112: 2189 | G112: 2379
A113: 6650 | B113: 973 | C113: 1482 | D113: 1789 | E113: 1998 | F113: 2198 | G113: 2389
A114: 6700 | B114: 977 | C114: 1488 | D114: 1796 | E114: 2006 | F114: 2207 | G114: 2399
A115: 6750 | B115: 981 | C115: 1494 | D115: 1803 | E115: 2014 | F115: 2216 | G115: 2408
A116: 6800 | B116: 985 | C116: 1500 | D116: 1810 | E116: 2022 | F116: 2225 | G116: 2418
A117: 6850 | B117: 989 | C117: 1506 | D117: 1818 | E117: 2030 | F117: 2233 | G117: 2428
A118: 6900 | B118: 993 | C118: 1512 | D118: 1825 | E118: 2038 | F118: 2242 | G118: 2437
A119: 6950 | B119: 997 | C119: 1518 | D119: 1832 | E119: 2047 | F119: 2251 | G119: 2447
A120: 7000 | B120: 1001 | C120: 1524 | D120: 1839 | E120: 2055 | F120: 2260 | G120: 2457
A121: 7050 | B121: 1005 | C121: 1530 | D121: 1847 | E121: 2063 | F121: 2269 | G121: 2466
A122: 7100 | B122: 1009 | C122: 1536 | D122: 1854 | E122: 2071 | F122: 2278 | G122: 2476
A123: 7150 | B123: 1013 | C123: 1542 | D123: 1861 | E123: 2079 | F123: 2287 | G123: 2486
A124: 7200 | B124: 1017 | C124: 1548 | D124: 1868 | E124: 2087 | F124: 2296 | G124: 2495
A125: 7250 | B125: 1021 | C125: 1554 | D125: 1876 | E125: 2095 | F125: 2304 | G125: 2505
A126: 7300 | B126: 1025 | C126: 1560 | D126: 1883 | E126: 2103 | F126: 2313 | G126: 2515
A127: 7350 | B127: 1029 | C127: 1567 | D127: 1890 | E127: 2111 | F127: 2322 | G127: 2524
A128: 7400 | B128: 1033 | C128: 1573 | D128: 1897 | E128: 2119 | F128: 2331 | G128: 2534
A129: 7450 | B129: 1037 | C129: 1579 | D129: 1904 | E129: 2127 | F129: 2340 | G129: 2544
A130: 7500 | B130: 1041 | C130: 1585 | D130: 1912 | E130: 2135 | F130: 2349 | G130: 2553
A131: 7550 | B131: 1045 | C131: 1591 | D131: 1919 | E131: 2143 | F131: 2358 | G131: 2563
A132: 7600 | B132: 1049 | C132: 1597 | D132: 1926 | E132: 2151 | F132: 2367 | G132: 2572
A133: 7650 | B133: 1053 | C133: 1603 | D133: 1933 | E133: 2159 | F133: 2375 | G133: 2582
A134: 7700 | B134: 1057 | C134: 1608 | D134: 1940 | E134: 2167 | F134: 2384 | G134: 2591
A135: 7750 | B135: 1061 | C135: 1614 | D135: 1947 | E135: 2175 | F135: 2392 | G135: 2600
A136: 7800 | B136: 1063 | C136: 1618 | D136: 1952 | E136: 2180 | F136: 2398 | G136: 2607
A137: 7850 | B137: 1066 | C137: 1622 | D137: 1956 | E137: 2184 | F137: 2403 | G137: 2612
A138: 7900 | B138: 1068 | C138: 1625 | D138: 1959 | E138: 2188 | F138: 2407 | G138: 2617
A139: 7950 | B139: 1070 | C139: 1628 | D139: 1963 | E139: 2193 | F139: 2412 | G139: 2622
A140: 8000 | B140: 1072 | C140: 1631 | D140: 1967 | E140: 2197 | F140: 2416 | G140: 2627
A141: 8050 | B141: 1074 | C141: 1634 | D141: 1970 | E141: 2201 | F141: 2421 | G141: 2632
A142: 8100 | B142: 1077 | C142: 1638 | D142: 1974 | E142: 2205 | F142: 2426 | G142: 2637
A143: 8150 | B143: 1079 | C143: 1641 | D143: 1978 | E143: 2209 | F143: 2430 | G143: 2642
A144: 8200 | B144: 1081 | C144: 1644 | D144: 1982 | E144: 2214 | F144: 2435 | G144: 2647
A145: 8250 | B145: 1083 | C145: 1647 | D145: 1985 | E145: 2218 | F145: 2439 | G145: 2652
A146: 8300 | B146: 1085 | C146: 1651 | D146: 1989 | E146: 2222 | F146: 2444 | G146: 2657
A147: 8350 | B147: 1088 | C147: 1654 | D147: 1993 | E147: 2226 | F147: 2449 | G147: 2662
A148: 8400 | B148: 1090 | C148: 1657 | D148: 1997 | E148: 2230 | F148: 2453 | G148: 2667
A149: 8450 | B149: 1092 | C149: 1660 | D149: 2000 | E149: 2234 | F149: 2458 | G149: 2672
A150: 8500 | B150: 1094 | C150: 1664 | D150: 2004 | E150: 2239 | F150: 2463 | G150: 2677
A151: 8550 | B151: 1097 | C151: 1667 | D151: 2008 | E151: 2243 | F151: 2467 | G151: 2682
A152: 8600 | B152: 1099 | C152: 1670 | D152: 2012 | E152: 2247 | F152: 2472 | G152: 2687
A153: 8650 | B153: 1101 | C153: 1673 | D153: 2015 | E153: 2251 | F153: 2476 | G153: 2692
A154: 8700 | B154: 1103 | C154: 1677 | D154: 2019 | E154: 2255 | F154: 2481 | G154: 2697
A155: 8750 | B155: 1105 | C155: 1680 | D155: 2023 | E155: 2260 | F155: 2486 | G155: 2702
A156: 8800 | B156: 1108 | C156: 1683 | D156: 2027 | E156: 2264 | F156: 2490 | G156: 2707
A157: 8850 | B157: 1110 | C157: 1686 | D157: 2030 | E157: 2268 | F157: 2495 | G157: 2712
A158: 8900 | B158: 1112 | C158: 1690 | D158: 2034 | E158: 2272 | F158: 2499 | G158: 2717
A159: 8950 | B159: 1115 | C159: 1693 | D159: 2038 | E159: 2277 | F159: 2504 | G159: 2722
A160: 9000 | B160: 1117 | C160: 1697 | D160: 2042 | E160: 2281 | F160: 2510 | G160: 2728
A161: 9050 | B161: 1119 | C161: 1700 | D161: 2047 | E161: 2286 | F161: 2515 | G161: 2733
A162: 9100 | B162: 1122 | C162: 1704 | D162: 2051 | E162: 2291 | F162: 2520 | G162: 2739
A163: 9150 | B163: 1125 | C163: 1708 | D163: 2055 | E163: 2296 | F163: 2525 | G163: 2745
A164: 9200 | B164: 1130 | C164: 1716 | D164: 2065 | E164: 2307 | F164: 2537 | G164: 2758
A165: 9250 | B165: 1135 | C165: 1724 | D165: 2075 | E165: 2317 | F165: 2549 | G165: 2771
A166: 9300 | B166: 1141 | C166: 1732 | D166: 2084 | E166: 2328 | F166: 2561 | G166: 2784
A167: 9350 | B167: 1146 | C167: 1740 | D167: 2094 | E167: 2339 | F167: 2573 | G167: 2796
A168: 9400 | B168: 1151 | C168: 1748 | D168: 2103 | E168: 2350 | F168: 2585 | G168: 2809
A169: 9450 | B169: 1157 | C169: 1756 | D169: 2113 | E169: 2360 | F169: 2596 | G169: 2822
A170: 9500 | B170: 1162 | C170: 1764 | D170: 2123 | E170: 2371 | F170: 2608 | G170: 2835
A171: 9550 | B171: 1167 | C171: 1772 | D171: 2132 | E171: 2382 | F171: 2620 | G171: 2848
A172: 9600 | B172: 1172 | C172: 1780 | D172: 2142 | E172: 2393 | F172: 2632 | G172: 2861
A173: 9650 | B173: 1178 | C173: 1788 | D173: 2152 | E173: 2403 | F173: 2644 | G173: 2874
A174: 9700 | B174: 1183 | C174: 1796 | D174: 2161 | E174: 2414 | F174: 2656 | G174: 2887
A175: 9750 | B175: 1188 | C175: 1804 | D175: 2171 | E175: 2425 | F175: 2667 | G175: 2899
A176: 9800 | B176: 1194 | C176: 1812 | D176: 2181 | E176: 2436 | F176: 2679 | G176: 2912
A177: 9850 | B177: 1199 | C177: 1820 | D177: 2190 | E177: 2446 | F177: 2691 | G177: 2925
A178: 9900 | B178: 1204 | C178: 1828 | D178: 2200 | E178: 2457 | F178: 2703 | G178: 2938
A179: 9950 | B179: 1210 | C179: 1836 | D179: 2209 | E179: 2468 | F179: 2715 | G179: 2951
A180: 10000 | B180: 1215 | C180: 1844 | D180: 2219 | E180: 2479 | F180: 2727 | G180: 2964
A181: 10050 | B181: 1220 | C181: 1852 | D181: 2229 | E181: 2489 | F181: 2738 | G181: 2977
A182: 10100 | B182: 1226 | C182: 1860 | D182: 2238 | E182: 2500 | F182: 2750 | G182: 2990
A183: 10150 | B183: 1231 | C183: 1868 | D183: 2248 | E183: 2511 | F183: 2762 | G183: 3002
A184: 10200 | B184: 1236 | C184: 1876 | D184: 2258 | E184: 2522 | F184: 2774 | G184: 3015
A185: 10250 | B185: 1242 | C185: 1884 | D185: 2267 | E185: 2533 | F185: 2786 | G185: 3028
A186: 10300 | B186: 1247 | C186: 1892 | D186: 2277 | E186: 2543 | F186: 2798 | G186: 3041
A187: 10350 | B187: 1252 | C187: 1901 | D187: 2287 | E187: 2554 | F187: 2809 | G187: 3054
A188: 10400 | B188: 1258 | C188: 1909 | D188: 2296 | E188: 2565 | F188: 2821 | G188: 3067
A189: 10450 | B189: 1262 | C189: 1914 | D189: 2303 | E189: 2572 | F189: 2830 | G189: 3076
A190: 10500 | B190: 1265 | C190: 1920 | D190: 2309 | E190: 2579 | F190: 2837 | G190: 3084
A191: 10550 | B191: 1269 | C191: 1925 | D191: 2315 | E191: 2586 | F191: 2845 | G191: 3092
A192: 10600 | B192: 1272 | C192: 1930 | D192: 2322 | E192: 2593 | F192: 2853 | G192: 3101
A193: 10650 | B193: 1276 | C193: 1936 | D193: 2328 | E193: 2600 | F193: 2860 | G193: 3109
A194: 10700 | B194: 1280 | C194: 1941 | D194: 2334 | E194: 2607 | F194: 2868 | G194: 3117
A195: 10750 | B195: 1283 | C195: 1946 | D195: 2340 | E195: 2614 | F195: 2875 | G195: 3126
A196: 10800 | B196: 1287 | C196: 1952 | D196: 2346 | E196: 2621 | F196: 2883 | G196: 3134
A197: 10850 | B197: 1291 | C197: 1957 | D197: 2353 | E197: 2628 | F197: 2891 | G197: 3142
A198: 10900 | B198: 1294 | C198: 1962 | D198: 2359 | E198: 2635 | F198: 2898 | G198: 3150
A199: 10950 | B199: 1298 | C199: 1968 | D199: 2365 | E199: 2642 | F199: 2906 | G199: 3159
A200: 11000 | B200: 1301 | C200: 1973 | D200: 2371 | E200: 2649 | F200: 2913 | G200: 3167
... 380 more rows

Sheet Child Care Adj (hidden)
A1: Line
C3: Mother | D3: Father
A5: 2 | B5: # of Kids | C5: =+'Worksheet A'!F40 -> 0 | D5: =+'Worksheet A'!H40 -> 0
A7: 3 | B7: Expenses | C7: =+'Worksheet A'!G40 -> 0 | D7: =+'Worksheet A'!I40 -> 0
B8: Annual | C8: =+C7*12 -> 0 | D8: =+D7*12 -> 0
C9: =IF(C5=0,0,IF(C5=1,3000,6000)) -> 0 | D9: =IF(D5=0,0,IF(D5=1,3000,6000)) -> 0
C10: =IF(C8>C9,C9,C8) -> 0 | D10: =IF(D8>D9,D9,D8) -> 0
A12: 4 | B12: Earned Income | C12: =+'Worksheet A'!G10+'Worksheet A'!G12 -> 0 | D12: =+'Worksheet A'!I10+'Worksheet A'!I12 -> 0
B13: Annual | C13: =+C12*12 -> 0 | D13: =+D12*12 -> 0
J14: 1000 | K14: 0.25 | L14: =+J14*K14 -> 250
A15: 5 | B15: n/a
A17: 6 | B17: Smallest 3,4 | C17: =IF(C10<C13,C10,C13) -> 0 | D17: =IF(D10<D13,D10,D13) -> 0
A20: 7 | B20: n/a
A22: 8 | B22: Decimal | C22: =VLOOKUP(C13,'Child Care Matrix'!A:B,2) -> 0.35 | D22: =VLOOKUP(D13,'Child Care Matrix'!A:B,2) -> 0.35 | H22: =200*0.35 -> 70
A24: 9 | C24: =+C17/12*C22 -> 0 | D24: =+D17/12*D22 -> 0 | H24: =+C17*0.2 -> 0
A26: 10 | B26: n/a
A28: 11 | C28: =+C24 -> 0 | D28: =+D24 -> 0
B30: Federal Tax Cr | C30: =+C7-C28 -> 0 | D30: =+D7-D28 -> 0

Sheet Child Care Matrix (hidden)
A1: 0 | B1: 0.35
A2: 15000.01 | B2: 0.34
A3: 17000.01 | B3: 0.33
A4: 19000.01 | B4: 0.32
A5: 21000.01 | B5: 0.31
A6: 23000.01 | B6: 0.3
A7: 25000.01 | B7: 0.29
A8: 27000.01 | B8: 0.28
A9: 29000.01 | B9: 0.27
A10: 31000.01 | B10: 0.26
A11: 33000.01 | B11: 0.25
A12: 35000.01 | B12: 0.24
A13: 37000.01 | B13: 0.23
A14: 39000.01 | B14: 0.22
A15: 41000.01 | B15: 0.21
A16: 43000.01 | B16: 0.2

Sheet Formula OTH (hidden)
B1: Kids | C1: =+Calculator!C3 -> 0 | E1: =IF(C1=0,0,IF(C1=1,1,IF(C1=2,2,IF(C1=3,3,IF(C1=4,4,IF(C1=5,5,6)))))) -> 0 | G1: =IF(E1=0,0,IF(E1=1,50,IF(E1=2,70,IF(E1=3,90,IF(E1=4,110,IF(E1=5,130,IF(E1=6,150,0))))))) -> 0
H3: Outside The Home
B4: Kids | C4: =+Calculator!C3 -> 0 | E4: =IF(C4=0,0,IF(C4=1,2,IF(C4=2,3,IF(C4=3,4,IF(C4=4,5,IF(C4=5,6,IF(C4>5,7))))))) -> 0 | G4: =+'Worksheet A'!G22 -> 0 | H4: =+'Worksheet A'!I22 -> 0 | M4: 1053 | O4: Low
G5: =IF(G4=0,0,IF(G4=1,2,IF(G4=2,3,IF(G4=3,4,IF(G4=4,5,IF(G4=5,6,IF(G4>5,7))))))) -> 0 | H5: =IF(H4=0,0,IF(H4=1,2,IF(H4=2,3,IF(H4=3,4,IF(H4=4,5,IF(H4=5,6,IF(H4>5,7))))))) -> 0 | M5: 1063 | O5: High
B6: CGI | C6: =ROUNDDOWN(+Calculator!C5,0) -> 0 | E6: =VLOOKUP(C6,Matrix!A:G,'Formula OTH'!E4) ->  | M6: =+M5-M4 -> 10 | O6: Diff High and Low
G7: Mom | H7: Dad | M7: 50 | O7: Spread
C8: =ROUNDUP(C6/50,0)*50 -> 0 | E8: =VLOOKUP(C8,Matrix!A:G,'Formula OTH'!E4) ->  | G8: =ROUNDDOWN(+'Worksheet A'!G17,0) -> 0 | H8: =ROUNDDOWN(+'Worksheet A'!I17,0) -> 0 | J8: Gross | M8: 10 | O8: Amount Over
B10: Diff | C10: =+E8-E6 ->  | G10: =ROUNDUP(G8/50,0)*50 -> 0 | H10: =ROUNDUP(H8/50,0)*50 -> 0 | M10: =+M6/M7*M8 -> 2 | O10: Inc
B12: Spread | C12: 50 | G12: =IF(G8<1100,G6,VLOOKUP(G8,Matrix!A:G,Formula!G5)) -> 0 | H12: =IF(H8<1100,H6,VLOOKUP(H8,Matrix!A:G,H5)) -> 0 | J12: Low
G13: =IF(G10<1100,G6,VLOOKUP(G10,Matrix!A:G,Formula!G5)) -> 0 | H13: =IF(H10<1100,H6,VLOOKUP(H10,Matrix!A:G,H5)) -> 0 | J13: High | M13: =+M4+M10 -> 1055 | O13: Total
B14: Amt Over | C14: =+C6-(C8-50) -> 50 | G14: =+G13-G12 -> 0 | H14: =+H13-H12 -> 0 | J14: Diff
G15: 50 | H15: 50 | J15: Spread
B16: Inc BSO | C16: =ROUND(C10/C12*C14,2) ->  | D16: rounded | G16: =+G8-(G10-50) -> 50 | H16: =+H8-(H10-50) -> 50 | J16: Amt Over
G17: =+G14/G15*G16 -> 0 | H17: =+H14/H15*H16 -> 0 | J17: Inc BSO
B18: BSO | C18: =IF(Calculator!C5=0,0,IF(Calculator!C5<1100,G1,'Formula OTH'!C22)) -> 0
G19: =+G12+G17 -> 0 | H19: =+H12+H17 -> 0 | J19: BSO
B20: Low | C20: 50
B21: High
B22: Actual | C22: =+E6+C16 -> 

Sheet Sheet1 (hidden)
B4: 2953 | C4: Actual
B5: 2950 | C5: Schedule | D5: 533 | E5: 540 | F5: =+E5-D5 -> 7 | H5: 50 | I5: =+F5/H5 -> 0.14
B6: =+B4-B5 -> 3 | C6: Excess
B7: =+I5*B6 -> 0.42 | C7: Amount for Excess
B9: =+D5+B7 -> 533.42 | C9: Final Amount
B12: 2953 | C12: Actual
B13: 2950 | C13: Schedule | D13: 533 | E13: 540 | F13: =+E13-D13 -> 7 | H13: 50 | I13: =+F13/H13 -> 0.14
B14: =+B12-B13 -> 3 | C14: Excess
B15: =+I13*B14 -> 0.42 | C15: Amount for Excess
B17: =+D13+B15 -> 533.42 | C17: Final Amount

Sheet DocGen CSE819A
B2: DISTRICT COURT , | J2: IV-D CASE
B3: CASE NO. | E3: COURT ROOM/DIVISION
B4: WORKSHEET A - CHILD SUPPORT OBLIGATION: SOLE PHYSICAL CARE
Q5: * Rows 11- 35 will not be cleared using this button,
B6: Obligee | H6: Obligor | Q6: Rows 11- 35 will clear only when using the "Get New /Blank Form" on "Worksheet A" tab
B7: Children | F7: Date of Birth | H7: Children | N7: Date of Birth
B11: OVERNIGHTS WITH EACH PARENT (MUST TOTAL 365) | H11: MOTHER: | J11: =IF('Worksheet A'!G5=1,365,0) -> 0 | K11: FATHER : | M11: =IF('Worksheet A'!I5=1,365,0) -> 0 | N11: COMBINED
B12: 1. MONTHLY GROSS INCOME | H12: ='Worksheet A'!G10 -> 0 | K12: ='Worksheet A'!I10 -> 0
B13: a. Plus maintenance received | H13: ='Worksheet A'!G12 -> 0 | K13: ='Worksheet A'!I12 -> 0
B14: b. Minus maintenance paid | H14: ='Worksheet A'!G14 -> 0 | K14: ='Worksheet A'!I14 -> 0
B15: c. Ordered child support payments for other children §14-10-15(6)(a)(I),C.R.S | H15: ='Worksheet A'!G16 -> 0 | K15: ='Worksheet A'!I16 -> 0
B16: d. Legal responsibility for children not of this marriage/relationship §14-10-115(6)(a)(II), C.R.S. (0/0) | H16: ='Worksheet A'!G18 -> 0 | K16: ='Worksheet A'!I18 -> 0
B17: e. Minus paid for other children without order §14-10-15(6)(a)(III),C.R.S (/) | H17: ='Worksheet A'!G24 -> 0 | K17: ='Worksheet A'!I24 -> 0
B18: f. Subtract ordered post-secondary education contributions** | H18: ='Worksheet A'!G26 -> 0 | K18: ='Worksheet A'!I26 -> 0
B19: 2. MONTHLY ADJUSTED GROSS INCOME (If either the paying parent's Income or Combined Income is less than 1,100, see the Minimum Order Worksheet on page 2 and enter that amount on line 11 for the paying parent) | H19: ='Worksheet A'!G28 -> 0 | K19: ='Worksheet A'!I28 -> 0 | N19: ='Worksheet A'!K28 -> 0
B20: 3. EACH PARENT'S PERCENTAGE SHARE OF INCOME (Each parent's income from line 2 divided by Combined Income) | H20: ='Worksheet A'!G30 ->  | K20: ='Worksheet A'!I30 -> 
B21: 4a. BASIC CHILD SUPPORTOBLIGATION (Apply line 2 Combined column to Child Support Schedule | N21: ='Worksheet A'!K32 -> 0
B22: b. Each parent's share of support obligation (Each parent's percentage from line 3 times Combined obligation in 4a) | H22: ='Worksheet A'!G34 ->  | K22: ='Worksheet A'!I34 -> 
B23: 5. LOW-INCOME ADJUSTMENT(If paying parent's income in line 2 is less than $1,900, see the Low-income Worksheet on page 2 and enter that amount) | H23: ='Worksheet A'!G36 ->  | K23: ='Worksheet A'!I36 -> 
B24: 6. ADJUSTMENTS (Expenses paid directly by each parent)
B25: a. Work-related Child Care- Actual costs minus Federal Tax Credit pursuant to §14-10-115(9), C.R.S (0.00/0.00) | H25: ='Worksheet A'!G42 -> 0 | K25: ='Worksheet A'!I42 -> 0
B26: b. Education-related Child Care pursuant to §14-10-115(9), C.R.S. | H26: ='Worksheet A'!G44 -> 0 | K26: ='Worksheet A'!I44 -> 0
B27: c. Health Insurance premium costs- Children's portion only pursuant to §14-10-115(10), C.R.S (See Page 2 for calculation worksheet) | H27: ='Worksheet A'!G46 -> 0 | K27: ='Worksheet A'!I46 -> 0
B28: d. Extraordinary Medical Expenses Unisured Only pursuant to §14-10-115(10), C.R.S | H28: ='Worksheet A'!G48 -> 0 | K28: ='Worksheet A'!I48 -> 0
B29: e. Extraordinary Expenses Agreed to by parents or by order of the court pursuant §14-10-115(11)(a), C.R.S | H29: ='Worksheet A'!G50 -> 0 | K29: ='Worksheet A'!I50 -> 0
B30: f. Extraordinary Adjustments pursuant to §14-10-115(11)(b), C.R.S | H30: ='Worksheet A'!G52 -> 0 | K30: ='Worksheet A'!I56 -> 
B31: 7. TOTAL ADJUSTMENTS (For each column, add 6a, 6b, 6c, 6d, and 6e. Subtract line 6f. Add two totals for combined amount) | H31: ='Worksheet A'!G54 -> 0 | K31: ='Worksheet A'!I54 -> 0 | N31: ='Worksheet A'!K54 -> 0
B32: 8. EACH PARENT'S SHARE OF ADJUSTMENTS. (Line 7 Combined column times line 3 for each parent) | H32: ='Worksheet A'!G56 ->  | K32: ='Worksheet A'!I56 -> 
B33: 9. EACH SHARE OF TOTAL CHILD SUPPORT OBLIGATION. (Add lines 4b and line 8, if line 4 is 0.00 add line 5 and 8) | H33: ='Worksheet A'!G58 ->  | K33: ='Worksheet A'!I58 -> 
B34: 10. PAYING PARENT'S ADJUSTMENTS (Enter line 7 for parent with less parenting time only) | H34: ='Worksheet A'!G60 -> 0 | K34: ='Worksheet A'!I60 -> 0
B35: 11. RECOMMENDED CHILD SUPPORT ORDER (Subtract line 10 from line 9 for the paying parent only. Leave receiving parent column blank) | H35: ='Worksheet A'!G68 ->  | K35: ='Worksheet A'!I68 -> 
B37: CSE819A (07/27/2018)
B40: Comments:
B51: If imputed income is used in the calculation of this worksheet, the preparer confirms that the factors are set for in 9 CCR 2504-1,6,707.1 C have been considered.
B53: ** This adjustment applies only to modification of child support orders entered between 07/01/91 and 07/01/97 that provide for post-secondary education expenses pursuant to §14-10-115(15)©,C.R.S
B54: PREPARED BY: | M54: DATE:
B56: MINIMUM ORDER WORKSHEET
B57: If the obligor's adjusted gross income is less than or equal to $1,100.00 per month:
B59: Minimum Order Calculation:
B60: If there is one child on the worksheet/order, the minimum order amount is $50 per month.
B61: If there are two children on the worksheet/order, the minimum order amount is $70 per month.
B62: If there are three children on the worksheet/order, the minimum order amount is $90 per month.
B63: If there are four children on the worksheet/order, the minimum order amount is $110 per month.
B64: If there are five children on the worksheet/order, the minimum order amount is $130 per month.
B65: If there are six or more children on the worksheet/order, the minimum order amount is $150 per month.
B68: Low-Income Adjustment Calculation:
B69: If the parents' combined monthly adjusted gross income is $1,100 or more, and the monthly adjusted gross income of the parent with the fewer overnights per year is less than $1,900, use this calculation worksheet to determine the adjustment allowed for that parent.
B70: Low-Income Adjustment Calculation:
B71: Adjusted monthly gross income of parent with fewer overnights from line 2 :
G72: Minus $1,100.00 (-) | J72: 1100
B73: Plus one of the following, according to the number of children on this worksheet (+)
B74: (1 child = $50, 2 children = $70, 3 children = $90, 4 children = $110, 5 children = $130, 6 or more= $150)
G75: Low income adjustment amt= | J75: =SUM(J71-J72)+J73 -> -1100
B77: If this amount is less than the amount on line 4b (on page 1) for the parent with fewer overnights per year, this parent qualifies for the Low-Income Adjustment. Enter this amount on line 5 in that parent's column on page 1. If this number is a negative or zero, enter zero. If the result of the low-income adjustment calculation is greater than the amount on line 4b (on page 1) for the parent with the fewer overnights per year, the low-income adjustment calculation is not used, and the amount calculated using the basic schedule of support obligations is used instead.
B79: HEATH INSURANCE PREMIUM CALCULATION
B80: If the actual amount of the health insurance premium is attributable to the child(ren) who is the subject of this order is not available or cannot be verified, the total cost of the premium should be divided by the number of persons covered by the policy to determine a per person cost. This amount is then multiplied by the number of children who are the subject of this order and are covered by the policy. This amount is then entered on line 6c on page one of this form.
B83: MOTHER
C84: ÷ | G84: =B84/D84 ->  | I84: X | M84: = | N84: =G84*J84 -> 
B85: Total Premium | D85: Number of Persons Covered by the Policy | G85: Per Person Cost | J85: Number of Children Who are the Subject of the Order | N85: Children's Portion of Cost of Heath Insurance Premium (Enter on line 6c)
B87: FATHER
C88: ÷ | G88: =B88/D88 ->  | I88: X | M88: = | N88: =G88*J88 -> 
B89: Total Premium | D89: Number of Persons Covered by the Policy | G89: Per Person Cost | J89: Number of Children Who are the Subject of the Order | N89: Children's Portion of Cost of Heath Insurance Premium (Enter on line 6c)
B91: CSE819A (07/27/2018)

Sheet List of Counties (hidden)
A2: ADAMS COUNTY, COLORADO
A3: ALAMOSA COUNTY, COLORADO
A4: ARAPAHOE COUNTY, COLORADO
A5: ARCHULETA COUNTY, COLORADO
A6: BACA COUNTY, COLORADO
A7: BENT COUNTY, COLORADO
A8: BOULDER COUNTY, COLORADO
A9: BROOMFIELD COUNTY, COLORADO
A10: CHAFFEE COUNTY, COLORADO
A11: CHEYENNE COUNTY, COLORADO
A12: CLEAR CREEK COUNTY, COLORADO
A13: CONEJOS COUNTY, COLORADO
A14: COSTILLA COUNTY, COLORADO
A15: CROWLEY COUNTY, COLORADO
A16: CUSTER COUNTY, COLORADO
A17: DELTA COUNTY, COLORADO
A18: DENVER COUNTY, COLORADO
A19: DOLORES COUNTY, COLORADO
A20: DOUGLAS COUNTY, COLORADO
A21: EAGLE COUNTY, COLORADO
A22: ELBERT COUNTY, COLORADO
A23: EL PASO COUNTY, COLORADO
A24: FREMONT COUNTY, COLORADO
A25: GARFIELD COUNTY, COLORADO
A26: GILPIN COUNTY, COLORADO
A27: GRAND COUNTY, COLORADO
A28: GUNNISON COUNTY, COLORADO
A29: HINSDALE COUNTY, COLORADO
A30: HUERFANO COUNTY, COLORADO
A31: JACKSON COUNTY, COLORADO
A32: JEFFERSON COUNTY, COLORADO
A33: KIOWA COUNTY, COLORADO
A34: LAKE COUNTY, COLORADO
A35: LA PLATA COUNTY, COLORADO
A36: LARIMER COUNTY, COLORADO
A37: LAS ANIMAS COUNTY, COLORADO
A38: LINCOLN COUNTY, COLORADO
A39: LOGAN COUNTY, COLORADO
A40: MESA COUNTY, COLORADO
A41: MINERAL COUNTY, COLORADO
A42: MOFFAT COUNTY, COLORADO
A43: MONTEZUMA COUNTY, COLORADO
A44: MONTROSE COUNTY, COLORADO
A45: MORGAN COUNTY, COLORADO
A46: OTERO COUNTY, COLORADO
A47: OURAY COUNTY, COLORADO
A48: PARK COUNTY, COLORADO
A49: PHILIPS COUNTY, COLORADO
A50: PITKIN COUNTY, COLORADO
A51: PROWERS COUNTY, COLORADO
A52: PUEBLO COUNTY, COLORADO
A53: RIO BLANCO COUNTY, COLORADO
A54: RIO GRANDE COUNTY, COLORADO
A55: ROUTT COUNTY, COLORADO
A56: SAGUACHE COUNTY, COLORADO
A57: SAN JUAN COUNTY, COLORADO
A58: SAN MIGUEL COUNTY, COLORADO
A59: SEDGWICH COUNTY, COLORADO
A60: SUMMIT COUNTY, COLORADO
A61: TELLER COUNTY, COLORADO
A62: WASHINGTON COUNTY, COLORADO
A63: WELD COUNTY, COLORADO
A64: YUMA COUNTY, COLORADO
